[Event "*** Titled Tuesday Blitz"]
[Site "Chess.com"]
[Date "2020.04.21"]
[Round "7"]
[White "Donseng"]
[Black "BvsN"]
[Result "1-0"]
[WhiteElo "2531"]
[BlackElo "2372"]
[TimeControl "180+1"]
[EndTime "11:22:21 PDT"]
[Termination "Donseng won by checkmate"]

1. e4 {[%clk 0:03:00.9]} 1... c5 {[%clk 0:02:59.8]} 2. Nf3 {[%clk 0:03:00.9]}
2... e6 {[%clk 0:03:00.3]} 3. d4 {[%clk 0:03:00.4]} 3... cxd4 {[%clk 0:03:01.2]}
4. Nxd4 {[%clk 0:03:01.3]} 4... Nf6 {[%clk 0:03:01.8]} 5. Nc3 {[%clk 0:02:59.7]}
5... Nc6 {[%clk 0:03:02.1]} 6. Ndb5 {[%clk 0:02:59.3]} 6... Bc5 {[%clk
0:03:01.5]} 7. Nd6+ {[%clk 0:02:55.3]} 7... Ke7 {[%clk 0:03:01.9]} 8. Bf4 {[%clk
0:02:47.3]} 8... e5 {[%clk 0:03:02.3]} 9. Nf5+ {[%clk 0:02:46.4]} 9... Kf8
{[%clk 0:03:02.5]} 10. Bg5 {[%clk 0:02:37.8]} 10... Bb4 {[%clk 0:02:45.7]} 11.
Qf3 {[%clk 0:02:30.6]} 11... h6 {[%clk 0:02:19.2]} 12. Bxf6 {[%clk 0:02:21.2]}
12... Qxf6 {[%clk 0:02:18.8]} 13. O-O-O {[%clk 0:02:21.5]} 13... Bxc3 {[%clk
0:02:06.3]} 14. Qxc3 {[%clk 0:02:17.7]} 14... d5 {[%clk 0:02:01.2]} 15. Rxd5
{[%clk 0:01:43.9]} 15... Bxf5 {[%clk 0:01:56.5]} 16. exf5 {[%clk 0:01:43.2]}
16... Qxf5 {[%clk 0:01:53.4]} 17. Bd3 {[%clk 0:01:39.9]} 17... Qg5+ {[%clk
0:01:50.8]} 18. Kb1 {[%clk 0:01:39.3]} 18... g6 {[%clk 0:01:41.8]} 19. g3 {[%clk
0:01:31.8]} 19... Kg7 {[%clk 0:01:41.4]} 20. f4 {[%clk 0:01:26.5]} 20... Qf6
{[%clk 0:01:38.1]} 21. fxe5 {[%clk 0:01:23.6]} 21... Qf3 {[%clk 0:01:35.1]} 22.
e6+ {[%clk 0:01:20.5]} 22... Kg8 {[%clk 0:01:17.4]} 23. exf7+ {[%clk 0:01:01.8]}
23... Qxf7 {[%clk 0:01:10.7]} 24. Bc4 {[%clk 0:00:56.4]} 24... Kh7 {[%clk
0:01:08.5]} 25. Rf1 {[%clk 0:00:52.6]} 25... Qe7 {[%clk 0:01:04.4]} 26. Re1
{[%clk 0:00:44.4]} 26... Qc7 {[%clk 0:00:58.4]} 27. h4 {[%clk 0:00:25.8]} 27...
h5 {[%clk 0:00:48.4]} 28. Qf6 {[%clk 0:00:21.5]} 28... Rae8 {[%clk 0:00:40.6]}
29. Red1 {[%clk 0:00:16.2]} 29... Re7 {[%clk 0:00:34.8]} 30. g4 {[%clk
0:00:12.9]} 30... Rf7 {[%clk 0:00:26.3]} 31. Qg5 {[%clk 0:00:12.5]} 31... Qe7
{[%clk 0:00:25.3]} 32. gxh5 {[%clk 0:00:11.9]} 32... Qxg5 {[%clk 0:00:22.1]} 33.
Rxg5 {[%clk 0:00:12.8]} 33... gxh5 {[%clk 0:00:20]} 34. Rxh5+ {[%clk 0:00:13.7]}
34... Kg7 {[%clk 0:00:20]} 35. Bxf7 {[%clk 0:00:13.6]} 35... Rf8 {[%clk
0:00:16.2]} 36. Bb3 {[%clk 0:00:13.3]} 36... Rf2 {[%clk 0:00:17.1]} 37. Rg1+
{[%clk 0:00:12.8]} 37... Kf6 {[%clk 0:00:16.5]} 38. Rh6+ {[%clk 0:00:13.1]}
38... Ke5 {[%clk 0:00:16.7]} 39. Rxc6 {[%clk 0:00:13.5]} 39... bxc6 {[%clk
0:00:17.6]} 40. Rh1 {[%clk 0:00:13.9]} 40... Kf6 {[%clk 0:00:16.9]} 41. h5
{[%clk 0:00:14.1]} 41... Kg7 {[%clk 0:00:17.3]} 42. h6+ {[%clk 0:00:14.8]} 42...
Kh8 {[%clk 0:00:17.8]} 43. c3 {[%clk 0:00:14.7]} 43... c5 {[%clk 0:00:17.8]} 44.
h7 {[%clk 0:00:14.3]} 44... a5 {[%clk 0:00:17.1]} 45. Bc2 {[%clk 0:00:14.5]}
45... a4 {[%clk 0:00:16.2]} 46. Rg1 {[%clk 0:00:14.7]} 46... c4 {[%clk
0:00:13.2]} 47. Rg8# {[%clk 0:00:14.3]} 1-0

[Event "*** Titled Tuesday Blitz"]
[Site "Chess.com"]
[Date "2020.04.21"]
[Round "7"]
[White "SARGISMV"]
[Black "Karina_Ivanova"]
[Result "1-0"]
[WhiteElo "2430"]
[BlackElo "2233"]
[TimeControl "180+1"]
[EndTime "11:22:22 PDT"]
[Termination "SARGISMV won by resignation"]

1. Nf3 {[%clk 0:02:58.7]} 1... Nf6 {[%clk 0:02:59.3]} 2. c4 {[%clk 0:02:57.5]}
2... e6 {[%clk 0:02:57.9]} 3. Nc3 {[%clk 0:02:57.1]} 3... c5 {[%clk 0:02:56.4]}
4. g3 {[%clk 0:02:55.9]} 4... b6 {[%clk 0:02:56]} 5. Bg2 {[%clk 0:02:55.9]} 5...
Bb7 {[%clk 0:02:55.9]} 6. O-O {[%clk 0:02:56.6]} 6... Be7 {[%clk 0:02:55.5]} 7.
Re1 {[%clk 0:02:57]} 7... O-O {[%clk 0:02:52.8]} 8. e4 {[%clk 0:02:57]} 8... d6
{[%clk 0:02:52.6]} 9. d4 {[%clk 0:02:57.1]} 9... cxd4 {[%clk 0:02:52.2]} 10.
Nxd4 {[%clk 0:02:58]} 10... Qc8 {[%clk 0:02:51.7]} 11. Be3 {[%clk 0:02:49.4]}
11... Rd8 {[%clk 0:02:48.5]} 12. Rc1 {[%clk 0:02:49]} 12... Nbd7 {[%clk
0:02:46.2]} 13. f4 {[%clk 0:02:41.1]} 13... a6 {[%clk 0:02:45]} 14. g4 {[%clk
0:02:40.1]} 14... Qc7 {[%clk 0:02:42.9]} 15. g5 {[%clk 0:02:40.1]} 15... Ne8
{[%clk 0:02:42.5]} 16. Qg4 {[%clk 0:02:33.3]} 16... Nc5 {[%clk 0:02:39]} 17. b4
{[%clk 0:02:30.4]} 17... Nd3 {[%clk 0:02:38.6]} 18. f5 {[%clk 0:01:30.7]} 18...
exf5 {[%clk 0:02:18.4]} 19. Nxf5 {[%clk 0:01:25.1]} 19... Nxe1 {[%clk
0:02:16.9]} 20. Nd5 {[%clk 0:01:15.1]} 20... Bxd5 {[%clk 0:02:06.2]} 21. cxd5
{[%clk 0:01:16]} 21... Qd7 {[%clk 0:02:03.7]} 22. Rxe1 {[%clk 0:01:15.7]} 22...
b5 {[%clk 0:01:51.6]} 23. Bd4 {[%clk 0:01:15]} 23... Bf8 {[%clk 0:01:49.5]} 24.
Rf1 {[%clk 0:01:06.2]} 24... g6 {[%clk 0:01:47.7]} 25. Bh3 {[%clk 0:00:36]}
25... gxf5 {[%clk 0:01:45]} 26. exf5 {[%clk 0:00:36.9]} 26... Rac8 {[%clk
0:01:30]} 27. Qh5 {[%clk 0:00:31.6]} 27... Bg7 {[%clk 0:01:04]} 28. f6 {[%clk
0:00:29.4]} 28... Bf8 {[%clk 0:00:53.2]} 29. Bxd7 {[%clk 0:00:28.5]} 29... Rxd7
{[%clk 0:00:53.1]} 30. Qg4 {[%clk 0:00:22.7]} 30... Rdc7 {[%clk 0:00:51.2]} 31.
h4 {[%clk 0:00:23]} 31... Rc1 {[%clk 0:00:50]} 32. h5 {[%clk 0:00:20.5]} 32...
Rxf1+ {[%clk 0:00:48.6]} 33. Kxf1 {[%clk 0:00:21.4]} 33... Rc4 {[%clk
0:00:48.9]} 34. Ke2 {[%clk 0:00:21.6]} 34... Rxb4 {[%clk 0:00:47.5]} 35. a3
{[%clk 0:00:20.9]} 35... Rc4 {[%clk 0:00:47]} 36. Kd3 {[%clk 0:00:18.7]} 36...
Nc7 {[%clk 0:00:36.6]} 37. Qf5 {[%clk 0:00:18.3]} 37... a5 {[%clk 0:00:32.1]}
38. g6 {[%clk 0:00:18]} 38... hxg6 {[%clk 0:00:31.2]} 39. hxg6 {[%clk
0:00:18.9]} 39... Na6 {[%clk 0:00:24.2]} 40. gxf7+ {[%clk 0:00:16.1]} 40... Kxf7
{[%clk 0:00:23.8]} 41. Qd7+ {[%clk 0:00:15]} 41... Kg6 {[%clk 0:00:20.5]} 42.
Qxb5 {[%clk 0:00:13.5]} 42... Rxd4+ {[%clk 0:00:15.3]} 43. Kxd4 {[%clk
0:00:12.7]} 43... Nc5 {[%clk 0:00:15.3]} 44. Qe8+ {[%clk 0:00:12.6]} 44... Kxf6
{[%clk 0:00:13.4]} 45. Qxf8+ {[%clk 0:00:12.6]} 1-0

[Event "*** Titled Tuesday Blitz"]
[Site "Chess.com"]
[Date "2020.04.21"]
[Round "7"]
[White "GMBenjaminBok"]
[Black "artooon"]
[Result "1-0"]
[WhiteElo "2881"]
[BlackElo "2668"]
[TimeControl "180+1"]
[EndTime "11:22:23 PDT"]
[Termination "GMBenjaminBok won by checkmate"]

1. c4 {[%clk 0:03:00.9]} 1... Nf6 {[%clk 0:02:59.5]} 2. g3 {[%clk 0:03:00]} 2...
e6 {[%clk 0:02:59.7]} 3. Bg2 {[%clk 0:03:00.2]} 3... d5 {[%clk 0:03:00.1]} 4.
Nf3 {[%clk 0:03:00.8]} 4... d4 {[%clk 0:03:00.2]} 5. O-O {[%clk 0:02:56.6]} 5...
c5 {[%clk 0:03:00.2]} 6. e3 {[%clk 0:02:53.8]} 6... Nc6 {[%clk 0:03:00.4]} 7.
exd4 {[%clk 0:02:53.9]} 7... cxd4 {[%clk 0:03:01.3]} 8. d3 {[%clk 0:02:54.4]}
8... Bd6 {[%clk 0:03:01]} 9. Na3 {[%clk 0:02:54.1]} 9... O-O {[%clk 0:02:58.5]}
10. Nc2 {[%clk 0:02:52.5]} 10... e5 {[%clk 0:02:58.6]} 11. b4 {[%clk 0:02:53]}
11... a6 {[%clk 0:02:51.3]} 12. Rb1 {[%clk 0:02:47.3]} 12... Bf5 {[%clk
0:02:49.9]} 13. a4 {[%clk 0:02:32.9]} 13... Re8 {[%clk 0:02:09.8]} 14. Re1
{[%clk 0:02:28.6]} 14... Qc7 {[%clk 0:01:46.4]} 15. Bg5 {[%clk 0:02:03.6]} 15...
Nd7 {[%clk 0:01:31.5]} 16. Nh4 {[%clk 0:02:03.4]} 16... Be6 {[%clk 0:01:30.7]}
17. Qe2 {[%clk 0:01:32.5]} 17... f6 {[%clk 0:01:28.4]} 18. Bd2 {[%clk
0:01:31.1]} 18... Nf8 {[%clk 0:01:25]} 19. c5 {[%clk 0:01:24.5]} 19... Be7
{[%clk 0:01:24.8]} 20. f4 {[%clk 0:01:24.2]} 20... Nd7 {[%clk 0:01:18.1]} 21.
Qh5 {[%clk 0:01:17.2]} 21... Nf8 {[%clk 0:00:53.8]} 22. Kh1 {[%clk 0:00:55.5]}
22... Qd7 {[%clk 0:00:53.9]} 23. Qe2 {[%clk 0:00:44.6]} 23... Bg4 {[%clk
0:00:50.9]} 24. Qf2 {[%clk 0:00:42.4]} 24... Be6 {[%clk 0:00:47.2]} 25. b5
{[%clk 0:00:38.6]} 25... axb5 {[%clk 0:00:48]} 26. axb5 {[%clk 0:00:39.4]} 26...
Na5 {[%clk 0:00:40.5]} 27. fxe5 {[%clk 0:00:37.2]} 27... fxe5 {[%clk 0:00:41.4]}
28. c6 {[%clk 0:00:35.2]} 28... bxc6 {[%clk 0:00:36]} 29. Bxa5 {[%clk
0:00:35.1]} 29... Rxa5 {[%clk 0:00:34.7]} 30. bxc6 {[%clk 0:00:32.2]} 30... Qd6
{[%clk 0:00:33.1]} 31. Nf5 {[%clk 0:00:29.4]} 31... Bxf5 {[%clk 0:00:30.9]} 32.
Qxf5 {[%clk 0:00:30.3]} 32... Rc5 {[%clk 0:00:31.3]} 33. Na3 {[%clk 0:00:25.2]}
33... Bf6 {[%clk 0:00:30.6]} 34. Nc4 {[%clk 0:00:23.4]} 34... Qd8 {[%clk
0:00:24.9]} 35. Rb7 {[%clk 0:00:20.6]} 35... Ne6 {[%clk 0:00:16.9]} 36. Rd7
{[%clk 0:00:18.1]} 36... Qc8 {[%clk 0:00:17.2]} 37. Nd6 {[%clk 0:00:17.5]} 37...
e4 {[%clk 0:00:07.8]} 38. Qxe4 {[%clk 0:00:12.3]} 38... Qa8 {[%clk 0:00:07]} 39.
Nxe8 {[%clk 0:00:11.5]} 39... Re5 {[%clk 0:00:07.6]} 40. Nxf6+ {[%clk
0:00:10.7]} 40... Kh8 {[%clk 0:00:07.6]} 41. Qxh7# {[%clk 0:00:10.2]} 1-0

[Event "*** Titled Tuesday Blitz"]
[Site "Chess.com"]
[Date "2020.04.21"]
[Round "7"]
[White "wadsy27"]
[Black "SketchyMoves"]
[Result "1-0"]
[WhiteElo "2508"]
[BlackElo "2663"]
[TimeControl "180+1"]
[EndTime "11:22:24 PDT"]
[Termination "wadsy27 won by checkmate"]

1. c4 {[%clk 0:03:00.9]} 1... b6 {[%clk 0:02:59.2]} 2. Nc3 {[%clk 0:03:00.3]}
2... Bb7 {[%clk 0:02:59.3]} 3. e4 {[%clk 0:03:00.5]} 3... e6 {[%clk 0:02:59.8]}
4. g3 {[%clk 0:03:00.2]} 4... Bb4 {[%clk 0:02:59.3]} 5. Nge2 {[%clk 0:02:59.7]}
5... f5 {[%clk 0:02:55.9]} 6. Bg2 {[%clk 0:02:58.3]} 6... Nf6 {[%clk 0:02:56.4]}
7. d3 {[%clk 0:02:55.2]} 7... Na6 {[%clk 0:02:48.7]} 8. O-O {[%clk 0:02:54.2]}
8... fxe4 {[%clk 0:02:46.4]} 9. dxe4 {[%clk 0:02:51]} 9... O-O {[%clk
0:02:41.4]} 10. a3 {[%clk 0:02:46.7]} 10... Bxc3 {[%clk 0:02:41.6]} 11. Nxc3
{[%clk 0:02:45.3]} 11... Nc5 {[%clk 0:02:41.9]} 12. Qc2 {[%clk 0:02:37.4]} 12...
a5 {[%clk 0:02:41.1]} 13. Be3 {[%clk 0:02:36.5]} 13... d6 {[%clk 0:02:24.5]} 14.
b4 {[%clk 0:02:12]} 14... Ncd7 {[%clk 0:02:24.5]} 15. f3 {[%clk 0:01:57.9]}
15... Ne5 {[%clk 0:02:14.4]} 16. Qe2 {[%clk 0:01:53.5]} 16... Nc6 {[%clk
0:02:10]} 17. b5 {[%clk 0:01:50.3]} 17... Ne5 {[%clk 0:02:07]} 18. Bh3 {[%clk
0:01:48.9]} 18... Qe7 {[%clk 0:02:05.2]} 19. Bd4 {[%clk 0:01:35.9]} 19... Ned7
{[%clk 0:02:04.9]} 20. Rad1 {[%clk 0:01:31.3]} 20... Kh8 {[%clk 0:02:04]} 21. a4
{[%clk 0:01:22.6]} 21... Rae8 {[%clk 0:02:03.7]} 22. Be3 {[%clk 0:01:21.5]}
22... h6 {[%clk 0:01:54.4]} 23. Na2 {[%clk 0:01:17.6]} 23... Nh7 {[%clk
0:01:50.3]} 24. Nc1 {[%clk 0:01:15.5]} 24... Ng5 {[%clk 0:01:48.2]} 25. Bxg5
{[%clk 0:01:14.2]} 25... Qxg5 {[%clk 0:01:46.4]} 26. Nd3 {[%clk 0:01:14.5]}
26... Qh5 {[%clk 0:01:30.2]} 27. Bg4 {[%clk 0:01:11.3]} 27... Qf7 {[%clk
0:01:29.5]} 28. f4 {[%clk 0:01:09.3]} 28... g6 {[%clk 0:01:20.5]} 29. Bf3 {[%clk
0:01:08.3]} 29... e5 {[%clk 0:01:15.7]} 30. Bg2 {[%clk 0:01:05]} 30... Qe7
{[%clk 0:01:09.3]} 31. f5 {[%clk 0:00:59.9]} 31... gxf5 {[%clk 0:01:07.5]} 32.
exf5 {[%clk 0:01:00]} 32... Bxg2 {[%clk 0:01:07.2]} 33. Qxg2 {[%clk 0:01:00.9]}
33... Rg8 {[%clk 0:01:01.3]} 34. Rde1 {[%clk 0:00:57.5]} 34... Ref8 {[%clk
0:01:00.9]} 35. Nf4 {[%clk 0:00:54.9]} 35... Rxf5 {[%clk 0:00:49.5]} 36. Ng6+
{[%clk 0:00:55]} 36... Rxg6 {[%clk 0:00:49.5]} 37. Rxf5 {[%clk 0:00:55.7]} 37...
Kg7 {[%clk 0:00:46.1]} 38. Ref1 {[%clk 0:00:54.5]} 38... Rf6 {[%clk 0:00:39.8]}
39. Qe4 {[%clk 0:00:43]} 39... Rxf5 {[%clk 0:00:37]} 40. Qxf5 {[%clk 0:00:43.2]}
40... Nf6 {[%clk 0:00:31.6]} 41. g4 {[%clk 0:00:43]} 41... Nh7 {[%clk
0:00:28.4]} 42. h4 {[%clk 0:00:35.6]} 42... e4 {[%clk 0:00:26.9]} 43. h5 {[%clk
0:00:30.3]} 43... Nf8 {[%clk 0:00:17.6]} 44. Rf4 {[%clk 0:00:23.2]} 44... e3
{[%clk 0:00:10]} 45. Re4 {[%clk 0:00:23.2]} 45... Qh4 {[%clk 0:00:07.5]} 46.
Rxe3 {[%clk 0:00:20.5]} 46... Nh7 {[%clk 0:00:02.4]} 47. Qg6+ {[%clk 0:00:18.6]}
47... Kh8 {[%clk 0:00:02.8]} 48. Re8+ {[%clk 0:00:18.1]} 48... Nf8 {[%clk
0:00:03.2]} 49. Rxf8# {[%clk 0:00:18.1]} 1-0

[Event "*** Titled Tuesday Blitz"]
[Site "Chess.com"]
[Date "2020.04.21"]
[Round "7"]
[White "viditchess"]
[Black "VerdeNotte"]
[Result "1/2-1/2"]
[WhiteElo "2970"]
[BlackElo "2757"]
[TimeControl "180+1"]
[EndTime "11:22:25 PDT"]
[Termination "Game drawn by repetition"]

1. d4 {[%clk 0:03:00.9]} 1... Nf6 {[%clk 0:02:59.9]} 2. c4 {[%clk 0:03:01.5]}
2... g6 {[%clk 0:03:00.2]} 3. g3 {[%clk 0:03:01.1]} 3... Bg7 {[%clk 0:03:00.6]}
4. Bg2 {[%clk 0:03:01.5]} 4... O-O {[%clk 0:03:00.8]} 5. Nc3 {[%clk 0:03:01.6]}
5... d6 {[%clk 0:03:01.2]} 6. Nf3 {[%clk 0:03:01.4]} 6... Nc6 {[%clk 0:03:01.6]}
7. O-O {[%clk 0:03:01]} 7... Rb8 {[%clk 0:03:01.2]} 8. b3 {[%clk 0:02:55.1]}
8... a6 {[%clk 0:03:01.2]} 9. d5 {[%clk 0:02:42.7]} 9... Na5 {[%clk 0:03:01.1]}
10. Bg5 {[%clk 0:02:42.4]} 10... b5 {[%clk 0:02:59]} 11. cxb5 {[%clk 0:02:14.7]}
11... axb5 {[%clk 0:02:59.9]} 12. b4 {[%clk 0:02:14.7]} 12... c5 {[%clk
0:03:00]} 13. bxc5 {[%clk 0:01:56.5]} 13... dxc5 {[%clk 0:02:53.4]} 14. Rc1
{[%clk 0:01:53.8]} 14... b4 {[%clk 0:02:48.8]} 15. Na4 {[%clk 0:01:54]} 15... c4
{[%clk 0:02:48.1]} 16. Bf4 {[%clk 0:01:35.4]} 16... Rb5 {[%clk 0:02:37.3]} 17.
Nd4 {[%clk 0:01:20.6]} 17... Rxd5 {[%clk 0:02:37.1]} 18. Bxd5 {[%clk 0:01:20.7]}
18... Nxd5 {[%clk 0:02:35.7]} 19. Nf3 {[%clk 0:01:01.7]} 19... Bh3 {[%clk
0:02:29.7]} 20. Re1 {[%clk 0:01:02.1]} 20... Nxf4 {[%clk 0:02:22.7]} 21. Qxd8
{[%clk 0:01:01.1]} 21... Nxe2+ {[%clk 0:02:08]} 22. Rxe2 {[%clk 0:01:02]} 22...
Rxd8 {[%clk 0:02:08.9]} 23. Rxe7 {[%clk 0:01:02.3]} 23... c3 {[%clk 0:01:55.3]}
24. Nc5 {[%clk 0:00:47.9]} 24... Bf8 {[%clk 0:01:35.5]} 25. Ra7 {[%clk
0:00:39.7]} 25... Nc6 {[%clk 0:01:16]} 26. Rc7 {[%clk 0:00:39.6]} 26... Bxc5
{[%clk 0:00:51.3]} 27. Rxc6 {[%clk 0:00:39.4]} 27... Bf8 {[%clk 0:00:50.5]} 28.
Ng5 {[%clk 0:00:36]} 28... Bf5 {[%clk 0:00:43.6]} 29. Rc7 {[%clk 0:00:35.8]}
29... Rd2 {[%clk 0:00:32.4]} 30. Nxf7 {[%clk 0:00:18.2]} 30... c2 {[%clk
0:00:20.8]} 31. Kg2 {[%clk 0:00:17]} 31... Rd1 {[%clk 0:00:15.6]} 32. g4 {[%clk
0:00:11.3]} 32... Be4+ {[%clk 0:00:07.7]} 33. f3 {[%clk 0:00:11.8]} 33... Bd3
{[%clk 0:00:06.3]} 34. R1xc2 {[%clk 0:00:06.5]} 34... Bxc2 {[%clk 0:00:06.5]}
35. Ng5 {[%clk 0:00:07.3]} 35... Bb1 {[%clk 0:00:05.5]} 36. Nxh7 {[%clk
0:00:06.8]} 36... Bd6 {[%clk 0:00:04]} 37. Nf6+ {[%clk 0:00:06.9]} 37... Kf8
{[%clk 0:00:04.5]} 38. Rd7 {[%clk 0:00:05.8]} 38... Bxa2 {[%clk 0:00:04.2]} 39.
Nh7+ {[%clk 0:00:05.7]} 39... Ke8 {[%clk 0:00:04.7]} 40. Nf6+ {[%clk 0:00:06.3]}
40... Kf8 {[%clk 0:00:04.6]} 41. Nh7+ {[%clk 0:00:06]} 41... Kg8 {[%clk
0:00:05.1]} 42. Nf6+ {[%clk 0:00:06.7]} 42... Kf8 {[%clk 0:00:05.1]} 1/2-1/2

[Event "*** Titled Tuesday Blitz"]
[Site "Chess.com"]
[Date "2020.04.21"]
[Round "7"]
[White "evgenyermolaev"]
[Black "Keaton87"]
[Result "1-0"]
[WhiteElo "2511"]
[BlackElo "2666"]
[TimeControl "180+1"]
[EndTime "11:22:25 PDT"]
[Termination "evgenyermolaev won on time"]

1. e4 {[%clk 0:03:00.9]} 1... c5 {[%clk 0:02:59.4]} 2. Nf3 {[%clk 0:02:56.1]}
2... d6 {[%clk 0:02:59.6]} 3. d4 {[%clk 0:02:55.7]} 3... Nf6 {[%clk 0:03:00.2]}
4. Nc3 {[%clk 0:02:55.6]} 4... cxd4 {[%clk 0:03:00.8]} 5. Nxd4 {[%clk
0:02:56.5]} 5... g6 {[%clk 0:03:01.4]} 6. Be3 {[%clk 0:02:56.2]} 6... Bg7 {[%clk
0:03:01.9]} 7. f3 {[%clk 0:02:56]} 7... O-O {[%clk 0:03:02.5]} 8. Qd2 {[%clk
0:02:56.3]} 8... Nc6 {[%clk 0:03:02.8]} 9. O-O-O {[%clk 0:02:56.2]} 9... d5
{[%clk 0:03:03.2]} 10. Nxc6 {[%clk 0:02:56]} 10... bxc6 {[%clk 0:03:03]} 11. Bh6
{[%clk 0:02:56.2]} 11... Be6 {[%clk 0:02:58.5]} 12. e5 {[%clk 0:02:52.6]} 12...
Nd7 {[%clk 0:02:57.8]} 13. Bxg7 {[%clk 0:02:53.1]} 13... Kxg7 {[%clk 0:02:57.7]}
14. h3 {[%clk 0:02:54]} 14... Nxe5 {[%clk 0:02:54.1]} 15. h4 {[%clk 0:02:46.8]}
15... Rb8 {[%clk 0:02:43.8]} 16. h5 {[%clk 0:02:43.7]} 16... Rh8 {[%clk
0:02:29.6]} 17. Re1 {[%clk 0:02:20.7]} 17... Nd7 {[%clk 0:02:17]} 18. Qd4+
{[%clk 0:02:16.7]} 18... Nf6 {[%clk 0:02:15.1]} 19. g4 {[%clk 0:02:14.1]} 19...
Qb6 {[%clk 0:02:14.3]} 20. Qe5 {[%clk 0:01:50.2]} 20... Qxb2+ {[%clk 0:02:13.9]}
21. Kd2 {[%clk 0:01:50.3]} 21... d4 {[%clk 0:02:14.3]} 22. Ne4 {[%clk
0:01:50.2]} 22... Qb4+ {[%clk 0:01:57.9]} 23. Kd1 {[%clk 0:01:50]} 23... g5
{[%clk 0:01:17.8]} 24. Qxg5+ {[%clk 0:00:57.3]} 24... Kf8 {[%clk 0:01:17.6]} 25.
Nxf6 {[%clk 0:00:57.7]} 25... exf6 {[%clk 0:01:14]} 26. Qxf6 {[%clk 0:00:56.8]}
26... Qb1+ {[%clk 0:00:43.7]} 27. Kd2 {[%clk 0:00:54.9]} 27... Qb4+ {[%clk
0:00:43.3]} 28. Kd1 {[%clk 0:00:52.8]} 28... Qb1+ {[%clk 0:00:29.5]} 29. Kd2
{[%clk 0:00:49.6]} 29... Qb4+ {[%clk 0:00:29.4]} 30. Ke2 {[%clk 0:00:40.6]}
30... Rg8 {[%clk 0:00:23.1]} 31. Kf2 {[%clk 0:00:36.8]} 31... Re8 {[%clk
0:00:19]} 32. Bd3 {[%clk 0:00:31]} 32... Qe7 {[%clk 0:00:13.5]} 33. Qh6+ {[%clk
0:00:18.5]} 33... Rg7 {[%clk 0:00:13.1]} 34. Bxh7 {[%clk 0:00:17.1]} 34... Qc5
{[%clk 0:00:12.7]} 35. Bd3 {[%clk 0:00:15.3]} 35... Qd6 {[%clk 0:00:08.4]} 36.
Qf6 {[%clk 0:00:14]} 36... Qd8 {[%clk 0:00:05.7]} 37. Qe5 {[%clk 0:00:09.2]}
37... Rg5 {[%clk 0:00:03.7]} 38. Qh8+ {[%clk 0:00:07.3]} 38... Ke7 {[%clk
0:00:03.7]} 39. Qh6 {[%clk 0:00:06.8]} 39... Qd5 {[%clk 0:00:02.9]} 40. Be4
{[%clk 0:00:05.1]} 40... Qc5 {[%clk 0:00:02]} 41. Bd3 {[%clk 0:00:05.2]} 41...
Reg8 {[%clk 0:00:02.3]} 42. Re4 {[%clk 0:00:03.9]} 1-0

[Event "*** Titled Tuesday Blitz"]
[Site "Chess.com"]
[Date "2020.04.21"]
[Round "7"]
[White "Richarzard69"]
[Black "yamalchess"]
[Result "1-0"]
[WhiteElo "2291"]
[BlackElo "2530"]
[TimeControl "180+1"]
[EndTime "11:22:28 PDT"]
[Termination "Richarzard69 won on time"]

1. Nf3 {[%clk 0:02:54.9]} 1... Nf6 {[%clk 0:02:58.9]} 2. c4 {[%clk 0:02:54.1]}
2... c5 {[%clk 0:02:58.1]} 3. Nc3 {[%clk 0:02:53.2]} 3... g6 {[%clk 0:02:58.4]}
4. g3 {[%clk 0:02:50.6]} 4... Bg7 {[%clk 0:02:58.4]} 5. Bg2 {[%clk 0:02:37]}
5... O-O {[%clk 0:02:58.8]} 6. d4 {[%clk 0:02:34.2]} 6... Nc6 {[%clk 0:02:56.9]}
7. O-O {[%clk 0:02:31]} 7... d6 {[%clk 0:02:56]} 8. dxc5 {[%clk 0:02:25.9]} 8...
dxc5 {[%clk 0:02:55.4]} 9. Be3 {[%clk 0:02:24.1]} 9... Qa5 {[%clk 0:02:50.8]}
10. Nd5 {[%clk 0:02:17.9]} 10... Be6 {[%clk 0:02:40.8]} 11. Qb3 {[%clk
0:02:01.8]} 11... Bxd5 {[%clk 0:02:11.3]} 12. cxd5 {[%clk 0:02:02.4]} 12... Nb4
{[%clk 0:02:11.1]} 13. Rfd1 {[%clk 0:01:54.8]} 13... Rad8 {[%clk 0:02:01.3]} 14.
Ne5 {[%clk 0:01:50.7]} 14... Nd7 {[%clk 0:01:12.5]} 15. Nc4 {[%clk 0:01:39.2]}
15... Qc7 {[%clk 0:01:09.1]} 16. Bf4 {[%clk 0:01:33.1]} 16... Qc8 {[%clk
0:01:05.1]} 17. a3 {[%clk 0:01:30.7]} 17... Na6 {[%clk 0:00:48.1]} 18. d6 {[%clk
0:01:30.6]} 18... e5 {[%clk 0:00:46.7]} 19. Bg5 {[%clk 0:01:25.8]} 19... Rde8
{[%clk 0:00:35.7]} 20. Bxb7 {[%clk 0:01:22.9]} 20... Qb8 {[%clk 0:00:34.4]} 21.
Na5 {[%clk 0:01:22]} 21... c4 {[%clk 0:00:31.4]} 22. Qxc4 {[%clk 0:01:11.5]}
22... Nac5 {[%clk 0:00:31.3]} 23. Bd5 {[%clk 0:01:02.3]} 23... Qxb2 {[%clk
0:00:29.2]} 24. Be7 {[%clk 0:00:57.9]} 24... e4 {[%clk 0:00:24.1]} 25. Bxf8
{[%clk 0:00:52.2]} 25... Rxf8 {[%clk 0:00:23.7]} 26. Nc6 {[%clk 0:00:46.1]}
26... e3 {[%clk 0:00:20.6]} 27. fxe3 {[%clk 0:00:40.1]} 27... Bh6 {[%clk
0:00:19.8]} 28. Rf1 {[%clk 0:00:34.7]} 28... Bxe3+ {[%clk 0:00:18.4]} 29. Kh1
{[%clk 0:00:34.4]} 29... Nb6 {[%clk 0:00:18.1]} 30. Bxf7+ {[%clk 0:00:22.2]}
30... Kg7 {[%clk 0:00:16.9]} 31. Qa2 {[%clk 0:00:21.4]} 31... Qb5 {[%clk
0:00:11.7]} 32. Ne7 {[%clk 0:00:18.3]} 32... Qd7 {[%clk 0:00:09.8]} 33. Rad1
{[%clk 0:00:15.4]} 33... Qb7+ {[%clk 0:00:07.9]} 34. Bd5 {[%clk 0:00:13.6]}
34... Rxf1+ {[%clk 0:00:04.8]} 35. Rxf1 {[%clk 0:00:12.8]} 35... Qd7 {[%clk
0:00:04.6]} 36. Rf7+ {[%clk 0:00:11.9]} 36... Kh6 {[%clk 0:00:03.7]} 37. Nf5+
{[%clk 0:00:11.1]} 1-0